bitfinex/quotes_BTCUSD_20241223
["timestamp","ask_amount","ask_price","bid_price","bid_amount"]
[1734966868128,0.00053277,93903.0,93887.0,0.10406832]
[1734966868329,0.00053277,93903.0,93888.0,0.11439315]
[1734966868541,0.00053277,93903.0,93890.0,0.002]
[1734966868740,0.00053277,93903.0,93900.0,0.005]
[1734966868904,0.00053277,93903.0,93890.0,0.002]
[1734966869105,0.01053277,93903.0,93902.0,0.02102709]
[1734966869305,0.01153277,93903.0,93902.0,0.02102709]
[1734966869607,0.01053277,93903.0,93902.0,0.02102709]
[1734966869855,0.11451909,93903.0,93887.0,0.001082]
[1734966870073,0.25,93901.0,93900.0,0.0015]
[1734966870235,0.1,93888.0,93887.0,0.001082]
[1734966870451,0.40128632,93888.0,93887.0,0.001082]
[1734966870656,0.1,93871.0,93850.0,4e-05]
[1734966870858,0.1,93866.0,93850.0,4e-05]
[1734966871058,0.20398632,93866.0,93850.0,4e-05]
[1734966871238,0.10398632,93866.0,93850.0,4e-05]
[1734966871439,0.10398632,93866.0,93857.0,0.02130426]
[1734966871990,0.10398632,93866.0,93865.0,0.00233141]
[1734966872192,0.15,93869.0,93857.0,0.02130426]
[1734966872193,0.1,93878.0,93857.0,0.01863567]
[1734966872396,0.00015971,93866.0,93857.0,0.01863567]
[1734966872807,0.00015971,93866.0,93850.0,4e-05]
[1734966872808,0.00115971,93866.0,93827.0,0.01063862]
[1734966873040,0.10414603,93866.0,93828.0,0.12005018]
[1734966873363,0.10414603,93866.0,93857.0,0.002]
[1734966873562,0.00015971,93866.0,93857.0,0.002]
[1734966873764,0.00015971,93866.0,93828.0,0.12005018]
[1734966873970,0.10414603,93866.0,93828.0,0.12005018]
[1734966874186,0.10414603,93866.0,93829.0,0.01200502]
[1734966874389,0.10414603,93866.0,93830.0,0.10398632]
[1734966875004,0.10414603,93866.0,93863.0,0.0211057]
[1734966875005,0.002,93866.0,93863.0,0.0211057]
[1734966875208,0.004,93866.0,93863.0,0.0211057]
[1734966875837,0.007,93866.0,93863.0,0.0191057]
[1734966876326,0.007,93866.0,93864.0,0.10398632]
[1734966876470,0.007,93866.0,93865.0,0.0123092]
[1734966876674,0.007,93866.0,93865.0,0.09829551]
[1734966876868,0.008,93866.0,93865.0,0.09829551]
[1734966877070,0.006,93866.0,93865.0,0.09829551]
[1734966877704,0.01,93903.0,93865.0,0.09829551]
[1734966878063,0.23988329,93900.0,93865.0,0.02429551]
[1734966878277,0.1,93892.0,93857.0,4e-05]
[1734966878477,0.01341,93902.0,93886.0,0.01334623]
[1734966878675,0.10398632,93901.0,93886.0,0.01334623]
[1734966878912,0.1,93899.0,93886.0,0.01334623]
[1734966879088,0.10398632,93898.0,93886.0,0.01334623]
[1734966879297,0.15,93897.0,93886.0,0.01334623]
[1734966879697,0.11053442,93903.0,93886.0,0.01334623]
[1734966879698,0.15,93895.0,93886.0,0.01334623]
[1734966879903,0.10398632,93894.0,93886.0,0.01334623]
[1734966880060,0.19898632,93894.0,93886.0,0.01334623]
[1734966880664,0.19898632,93894.0,93886.0,0.00034621]
[1734966881045,0.1,93890.0,93886.0,0.00034621]
[1734966881248,0.1,93886.0,93865.0,4e-05]
[1734966881499,0.10398632,93885.0,93865.0,4e-05]
[1734966882217,0.10398632,93885.0,93882.0,0.02115951]
[1734966882727,0.1,93874.0,93872.0,0.02146051]
[1734966882862,0.1,93874.0,93865.0,0.00104]
[1734966882863,0.23388632,93873.0,93865.0,0.00104]
[1734966883071,0.1,93870.0,93865.0,0.00104]
[1734966883285,0.23388632,93873.0,93865.0,0.00104]
[1734966883286,0.1,93867.0,93865.0,0.00014]
[1734966883505,0.20398632,93866.0,93865.0,0.00014]
[1734966883685,0.35398632,93866.0,93865.0,0.00014]
[1734966884281,0.35398632,93866.0,93857.0,4e-05]
[1734966884282,0.313087,93858.0,93857.0,4e-05]
[1734966884487,0.66707332,93858.0,93857.0,4e-05]
[1734966884685,0.79197332,93858.0,93857.0,4e-05]
[1734966885568,0.79197332,93858.0,93857.0,0.00404]
[1734966885981,0.1,93837.0,93820.0,0.000171]
[1734966886258,0.1,93837.0,93800.0,4e-05]
[1734966886259,0.10398632,93836.0,93800.0,4e-05]
[1734966886492,0.10398632,93836.0,93792.0,0.09210802]
[1734966886493,0.14574928,93820.0,93808.0,0.00015991]
[1734966886718,0.10398632,93820.0,93808.0,0.00015991]
[1734966887148,0.0832,93838.0,93819.0,0.02149681]
[1734966887362,0.1,93854.0,93820.0,0.10398632]
[1734966887537,0.15,93852.0,93820.0,0.10398632]
[1734966887767,0.1,93848.0,93821.0,0.01254831]
[1734966887884,0.0832,93855.0,93821.0,0.01254831]
[1734966887885,0.15,93850.0,93821.0,0.10398632]
[1734966888106,0.10398632,93850.0,93842.0,0.02133236]
[1734966888315,0.0832,93855.0,93842.0,0.02133236]
[1734966888803,0.002,93852.0,93842.0,0.02133236]
[1734966889322,0.00016027,93852.0,93842.0,0.02133236]
[1734966889527,0.00016027,93852.0,93842.0,0.02433236]
[1734966889940,0.00016027,93852.0,93842.0,0.01913236]
[1734966890811,0.00016027,93852.0,93842.0,0.00113235]
[1734966891016,0.00016027,93852.0,93842.0,0.00213235]
[1734966891173,0.00016027,93852.0,93842.0,0.00513235]
[1734966891376,0.00016027,93852.0,93842.0,0.00213235]
[1734966891578,0.00016027,93852.0,93842.0,0.00113235]
[1734966891797,0.00016027,93852.0,93842.0,0.00813235]
[1734966892975,0.00016027,93852.0,93822.0,0.09808136]
[1734966893232,0.00016027,93852.0,93823.0,0.14551119]
[1734966893441,0.0813,93872.0,93832.0,0.213146]
[1734966893649,0.0813,93872.0,93834.0,0.213142]
[1734966893852,0.0485,93874.0,93851.0,0.02136176]
[1734966894229,0.002,93852.0,93835.0,0.10398632]
[1734966894665,0.0485,93874.0,93835.0,0.10398632]
[1734966894666,0.0485,93874.0,93851.0,0.02124004]
[1734966894875,0.003,93852.0,93851.0,0.02124004]
[1734966895290,0.002,93872.0,93851.0,0.02124004]
[1734966895491,0.001,93852.0,93851.0,0.02124004]
[1734966895701,0.001,93852.0,93851.0,0.00324003]
[1734966896133,0.001,93852.0,93851.0,0.10722635]
[1734966896464,0.002,93852.0,93851.0,0.10446813]
[1734966896895,0.002,93852.0,93851.0,0.03026353]
[1734966897482,0.1464856,93888.0,93851.0,0.02526353]
[1734966897681,0.10398632,93887.0,93852.0,0.10398632]
[1734966897945,0.0464856,93888.0,93852.0,0.10398632]
[1734966898145,0.0464856,93888.0,93853.0,0.16292499]
[1734966898345,0.0464856,93888.0,93855.0,0.15]
[1734966898586,0.0001712,93872.0,93857.0,0.15]
[1734966898844,0.0001712,93872.0,93858.0,0.10398632]
[1734966899429,0.0001712,93872.0,93857.0,0.15]
[1734966899603,0.0001712,93872.0,93852.0,0.002]
[1734966899808,0.0001712,93872.0,93854.0,0.15]
[1734966900084,0.0011712,93872.0,93858.0,0.008]
[1734966900238,0.0011712,93872.0,93871.0,0.02117567]
[1734966900630,0.0011712,93872.0,93871.0,0.00117567]
[1734966901437,0.0001712,93872.0,93871.0,0.00117567]
[1734966901852,0.1464856,93888.0,93871.0,0.00117567]
[1734966901853,0.0464856,93888.0,93871.0,0.00117567]
[1734966902053,0.01,93903.0,93872.0,0.10398632]
[1734966902477,0.1,93896.0,93871.0,0.007]
[1734966902707,0.10398632,93895.0,93871.0,0.003]
[1734966902892,0.20398632,93895.0,93871.0,0.003]
[1734966903028,0.20398632,93895.0,93857.0,0.01337977]
[1734966903029,0.1,93885.0,93857.0,0.01337977]
[1734966903232,0.10398632,93884.0,93841.0,0.15]
[1734966903597,0.1,93881.0,93851.0,0.10398632]
[1734966903804,0.00516032,93903.0,93882.0,0.02105607]
[1734966903965,0.00516032,93903.0,93883.0,0.10398632]
[1734966904183,0.00516032,93903.0,93870.0,0.2400771]
[1734966904369,0.00516032,93903.0,93880.0,0.02139565]
[1734966904613,0.1,93900.0,93871.0,0.10398632]
[1734966904770,0.1,93897.0,93855.0,0.15]
[1734966904971,0.00516032,93903.0,93857.0,0.15]
[1734966904972,0.20398632,93896.0,93857.0,0.15]
[1734966905174,0.003,93885.0,93859.0,0.15]
[1734966905406,0.003,93885.0,93870.0,0.2400771]
[1734966905639,0.1,93900.0,93870.0,0.10398632]
[1734966905784,0.10398632,93899.0,93870.0,0.10398632]
[1734966906130,0.0457,93894.0,93861.0,0.15]
[1734966906278,0.14968632,93894.0,93884.0,0.02140382]
[1734966906483,0.14468632,93894.0,93884.0,0.02140382]
[1734966907317,0.1,93890.0,93884.0,0.02140382]
[1734966907517,0.10398632,93889.0,93884.0,0.02140382]
[1734966907718,0.1,93886.0,93884.0,0.02140382]
[1734966907895,0.10398632,93885.0,93884.0,0.02140382]
[1734966908447,0.20398632,93885.0,93884.0,0.02340382]
[1734966908654,0.20398632,93885.0,93884.0,0.02140382]
[1734966909150,0.20398632,93885.0,93884.0,0.02740382]
[1734966909393,0.20398632,93885.0,93884.0,0.02340382]
[1734966909590,0.00516032,93903.0,93884.0,0.02540382]
[1734966909763,0.00516032,93903.0,93890.0,0.2400771]
[1734966909981,0.06015567,93905.0,93890.0,0.26642519]
[1734966910181,0.01227535,93908.0,93891.0,0.10398632]
[1734966910585,0.01227535,93908.0,93891.0,0.08398632]
[1734966911006,0.18329445,93924.0,93891.0,0.08398632]
[1734966911199,0.20398632,93920.0,93892.0,0.04689348]
[1734966911401,0.1,93913.0,93890.0,0.00016032]
[1734966911599,0.10398632,93912.0,93890.0,0.00016032]
[1734966911839,0.18329445,93924.0,93906.0,0.0212074]
[1734966912029,0.1,93931.0,93906.0,0.0212074]
[1734966912030,0.1,93931.0,93910.0,0.1454191]
[1734966912231,0.1,93931.0,93906.0,0.0212074]
[1734966912488,0.10398632,93920.0,93907.0,0.01666265]
[1734966912689,0.1,93931.0,93907.0,0.01666265]
[1734966912932,0.002,93912.0,93900.0,0.1454191]
[1734966913371,0.002,93912.0,93891.0,0.01735179]
[1734966913570,0.00133081,93931.0,93900.0,0.1454191]
[1734966913717,0.1,93927.0,93911.0,0.02113422]
[1734966913920,0.0950855,93927.0,93911.0,0.02113422]
[1734966914140,0.10398632,93926.0,93911.0,0.02113422]
[1734966915324,0.0482,93934.0,93911.0,0.02113422]
[1734966915325,0.15,93933.0,93911.0,0.02113422]
[1734966915555,0.15,93933.0,93912.0,0.01675533]
[1734966915760,0.15,93933.0,93912.0,0.00975533]
[1734966915996,0.0482,93934.0,93911.0,0.02313422]
[1734966916199,0.0482,93934.0,93911.0,0.12712054]
[1734966916610,0.0482,93934.0,93911.0,0.12512054]
[1734966917029,0.0950855,93928.0,93892.0,0.01629312]
[1734966917234,0.0950855,93925.0,93893.0,0.10398632]
[1734966917444,0.0900855,93918.0,93890.0,0.01733475]
[1734966917649,0.0900855,93916.0,93890.0,0.01583475]
[1734966917850,0.10398632,93917.0,93881.0,0.15]
[1734966917851,0.10398632,93915.0,93881.0,0.15]
[1734966918061,0.0900855,93911.0,93881.0,0.10398632]
[1734966918264,0.0001602,93915.0,93903.0,0.02169769]
[1734966919501,0.0001602,93915.0,93904.0,0.10398632]
[1734966919714,0.0001602,93915.0,93903.0,0.02169769]
[1734966919715,0.0001602,93915.0,93905.0,0.11655472]
[1734966920717,0.0001602,93915.0,93905.0,0.09655472]
[1734966921164,0.0001602,93915.0,93903.0,0.02869769]
[1734966921782,0.0001602,93915.0,93903.0,0.02369769]
[1734966921986,0.10414652,93915.0,93903.0,0.02869769]
[1734966922395,0.10414652,93915.0,93903.0,0.02089769]
[1734966922603,0.10423202,93915.0,93903.0,0.02489769]
[1734966922806,0.19431752,93915.0,93903.0,0.02289769]
[1734966923009,0.10398632,93914.0,93905.0,0.002]
[1734966923240,0.1674855,93906.0,93905.0,0.002]
[1734966923534,0.27147182,93906.0,93905.0,0.002]
[1734966923586,0.0900855,93895.0,93871.0,8.55e-05]
[1734966923796,0.10398632,93894.0,93871.0,8.55e-05]
[1734966923991,0.10398632,93894.0,93889.0,0.02156241]
[1734966924336,0.0900855,93898.0,93889.0,0.02156241]
[1734966924543,0.10398632,93897.0,93889.0,0.02156241]
[1734966924947,0.0774,93906.0,93889.0,0.02156241]
[1734966925341,0.0774,93906.0,93905.0,0.001]
[1734966926602,0.0774,93906.0,93889.0,0.02156241]
[1734966926809,0.0774,93906.0,93889.0,0.02456241]
[1734966927018,0.0774,93906.0,93905.0,0.001]
[1734966927641,0.0469,93907.0,93905.0,0.001]
[1734966927854,0.0002457,93915.0,93905.0,0.001]
[1734966928266,0.0002457,93915.0,93891.0,0.15]
[1734966928467,0.001,93906.0,93905.0,0.02096738]
[1734966928883,0.001,93906.0,93905.0,0.1249537]
[1734966929090,0.001,93906.0,93905.0,0.1269537]
[1734966929525,0.1,93980.0,93928.0,0.212927]
[1734966929728,0.45269224,93981.0,93917.0,0.15]
[1734966929729,0.12045925,93942.0,93932.0,0.3583371]
[1734966929943,0.05273032,93945.0,93933.0,0.25398632]
[1734966930145,0.18395113,93950.0,93942.0,0.212896]
[1734966930351,0.18395113,93950.0,93933.0,0.21752564]
[1734966930352,0.05663077,93950.0,93949.0,0.362881]
[1734966930561,0.23011011,93952.0,93951.0,0.3727905]
[1734966930781,0.23011011,93952.0,93951.0,0.10398632]
[1734966930992,0.23011011,93952.0,93937.0,0.02136226]
[1734966931201,0.23011011,93952.0,93951.0,0.10398632]
[1734966931411,0.1454191,94010.0,93953.0,0.15]
[1734966931412,0.09627688,93992.0,93953.0,0.15]
[1734966931618,0.09627688,93992.0,93958.0,0.15]
[1734966931825,0.00016029,93969.0,93959.0,0.10398632]
[1734966932031,0.00016029,93969.0,93960.0,0.212856]
[1734966932241,0.00016029,93969.0,93961.0,0.18723045]
[1734966932443,0.04104589,93984.0,93961.0,0.19454136]
[1734966932622,0.04157988,93984.0,93961.0,0.19454136]
[1734966932826,0.04157988,93984.0,93970.0,0.1454191]
[1734966932827,0.00053399,93984.0,93970.0,0.1454191]
[1734966933026,0.00053399,93984.0,93971.0,0.10398632]
[1734966933244,0.00053399,93984.0,93972.0,0.02494054]
[1734966933397,0.001,93982.0,93973.0,0.10398632]
[1734966933595,0.001,93982.0,93973.0,0.11123532]
[1734966933800,0.001,93982.0,93981.0,0.02154803]
[1734966934003,0.001,93982.0,93981.0,0.27553435]
[1734966934199,0.001,93982.0,93981.0,0.34659437]
[1734966934633,0.0900855,94017.0,93981.0,0.34659437]
[1734966934634,8.55e-05,94026.0,94004.0,0.15]
[1734966934845,0.0788,94042.0,94010.0,0.1454191]
[1734966935051,0.00016016,94019.0,94018.0,0.362725]
[1734966935245,0.2759267,94046.0,94022.0,0.0099145]
[1734966935246,0.2760122,94046.0,94022.0,0.0099145]
[1734966935445,0.20755119,94046.0,94030.0,0.1454191]
[1734966935650,0.20751119,94046.0,94023.0,0.00694599]
[1734966935993,8.55e-05,94046.0,94030.0,0.1454191]
[1734966936189,8.55e-05,94046.0,94033.0,0.02083531]
[1734966936390,8.55e-05,94046.0,94033.0,0.00083531]
[1734966936572,8.55e-05,94046.0,94034.0,0.00691654]
[1734966936798,8.55e-05,94046.0,94034.0,0.11090286]
[1734966937122,8.55e-05,94046.0,94034.0,0.32358986]
[1734966937323,8.55e-05,94046.0,94035.0,0.07074848]
[1734966937532,8.55e-05,94059.0,94040.0,0.1454191]
[1734966937766,0.0001601,94057.0,94041.0,0.10398632]
[1734966937964,0.0001601,94057.0,94041.0,0.00670338]
[1734966938181,0.10398632,94056.0,94041.0,0.00670338]
[1734966938387,0.10398632,94056.0,94033.0,0.00083531]
[1734966938646,0.10398632,94056.0,94034.0,0.02962544]
[1734966938844,0.10398632,94056.0,94034.0,0.03634756]
[1734966939051,0.0900855,94055.0,94034.0,0.00672212]
[1734966939258,0.19407182,94054.0,94034.0,0.00672212]
[1734966939475,0.19407182,94054.0,94033.0,0.00583531]
[1734966939476,0.0900855,94051.0,94033.0,0.005]
[1734966939698,0.0900855,94035.0,94010.0,0.02103376]
[1734966939906,0.0001601,94057.0,93990.0,0.0099145]
[1734966939907,0.0900855,94022.0,94003.0,0.0210399]
[1734966940112,0.0900855,94017.0,94011.0,0.00566766]
[1734966940324,0.0900855,94015.0,93980.0,0.14516386]
[1734966940533,0.1,94024.0,93980.0,0.14516386]
[1734966940534,0.0484,94021.0,93982.0,0.10398632]
[1734966940754,0.19407182,94020.0,93998.0,0.00162801]
[1734966940954,0.0900855,94013.0,93982.0,0.1097317]
[1734966941167,0.0900855,94010.0,93970.0,0.535041]
[1734966941386,0.0752,94000.0,93983.0,0.0057427]
[1734966941588,0.0752,94000.0,93982.0,0.00016016]
[1734966942005,0.0752,94000.0,93983.0,0.0057427]
[1734966942237,0.0752,94000.0,93984.0,0.10398632]
[1734966942507,0.002,94015.0,93985.0,0.212799]
[1734966942729,0.002,94015.0,93991.0,0.15]
[1734966942970,0.0484,94021.0,94000.0,0.23927292]
[1734966943171,0.0781,94050.0,94011.0,0.23927292]
[1734966943373,0.0781,94050.0,94018.0,0.0099145]
[1734966943579,0.0781,94050.0,94019.0,0.1688805]
[1734966944026,0.0781,94050.0,94019.0,0.17452673]
[1734966944248,0.0781,94050.0,94027.0,0.212703]
[1734966944453,0.0781,94050.0,94037.0,0.02142984]
[1734966944666,0.07826007,94050.0,94037.0,0.02142984]
[1734966944877,0.08026007,94050.0,94037.0,0.02142984]
[1734966945090,0.08026007,94050.0,94018.0,0.15]
[1734966945299,0.08026007,94050.0,94020.0,0.20025244]
[1734966945508,0.10398632,94049.0,94020.0,0.20589599]
[1734966945720,0.10398632,94049.0,94020.0,0.10190967]
[1734966945947,0.08026007,94050.0,94021.0,0.10398632]
[1734966946149,0.10398632,94048.0,94026.0,0.02108891]
[1734966946330,0.07826007,94050.0,94027.0,0.10398632]
[1734966946530,0.07826007,94050.0,94037.0,0.003]
[1734966946856,0.19407182,94049.0,94037.0,0.003]
[1734966947004,0.19407182,94049.0,94026.0,0.02108891]
[1734966947184,0.19407182,94049.0,93940.0,0.19092663]
[1734966947185,0.0900855,94040.0,93998.0,0.15]
[1734966947388,0.0900855,94040.0,93991.0,0.212785]
[1734966947389,0.00016007,94050.0,94026.0,0.003]
[1734966947913,0.00016007,94050.0,94027.0,0.00562481]
[1734966948277,0.00016007,94050.0,94036.0,0.02168128]
[1734966948521,0.00016007,94050.0,94037.0,0.005]
[1734966948712,0.00016007,94050.0,94038.0,0.10398632]
[1734966948880,0.00016007,94050.0,94036.0,0.02168128]
[1734966948881,0.00016007,94050.0,94039.0,0.03433586]
[1734966949077,0.00016007,94050.0,94039.0,0.00559267]
[1734966949499,0.00016007,94050.0,94036.0,0.02168128]
[1734966949687,0.00016007,94050.0,94040.0,0.00555794]
[1734966949949,0.00016007,94050.0,94038.0,0.004]
[1734966950136,0.00016007,94050.0,94041.0,0.00555526]
[1734966950311,0.00016007,94050.0,94039.0,0.00556062]
[1734966950510,0.00016007,94050.0,94042.0,0.00555259]
[1734966950788,0.00016007,94050.0,94040.0,0.00055794]
[1734966950996,0.00016007,94050.0,94043.0,0.00707486]
[1734966951207,0.0900855,94047.0,94043.0,0.00707486]
[1734966951411,0.0900855,94044.0,94039.0,0.006]
[1734966951615,0.19407182,94044.0,94039.0,0.006]
[1734966951817,0.19407182,94044.0,94028.0,0.02111235]
[1734966952023,0.10398632,94044.0,94040.0,0.002]
[1734966952236,0.00016007,94050.0,94040.0,0.002]
[1734966952633,0.19407182,94049.0,94040.0,0.002]
[1734966952842,0.0900855,94044.0,94040.0,0.002]
[1734966953041,0.1677855,94041.0,94040.0,0.002]
[1734966953243,0.27177182,94041.0,94040.0,0.002]
[1734966953445,0.15,94048.0,94040.0,0.002]
[1734966953818,0.0900855,94041.0,94040.0,0.002]
[1734966954003,0.19407182,94041.0,94021.0,0.02145115]
[1734966954202,0.0900855,94039.0,94021.0,0.02145115]
[1734966954406,0.10398632,94038.0,94021.0,0.02145115]
[1734966954554,0.19407182,94038.0,94021.0,0.02145115]
[1734966954967,0.0900855,94045.0,94040.0,0.003]
[1734966955168,0.15,94044.0,94040.0,0.003]
[1734966955381,0.212603,94073.0,94040.0,0.003]
[1734966955382,0.0900855,94054.0,94040.0,0.003]
[1734966955757,0.0900855,94054.0,94040.0,0.002]
[1734966955966,0.0900855,94054.0,94021.0,0.23416815]
[1734966955967,0.0900855,94030.0,94021.0,0.001]
[1734966956169,0.15,94031.0,94021.0,0.001]
[1734966956170,0.19407182,94029.0,94021.0,0.001]
[1734966956381,0.2400855,94029.0,94021.0,0.001]
[1734966956589,0.0456,94040.0,94021.0,0.001]
[1734966957410,0.0456,94040.0,94018.0,0.212723]
[1734966957616,0.0456,94040.0,94014.0,0.212734]
[1734966957617,0.0456,94040.0,94022.0,0.00722245]
[1734966959195,0.0456,94040.0,94022.0,0.01422245]
[1734966959604,0.0900855,94036.0,94022.0,0.00732032]
[1734966959776,0.0900855,94036.0,94022.0,0.007]
[1734966960119,0.00720675,94036.0,94021.0,0.02105288]
[1734966960527,0.08410675,94021.0,94020.0,0.0001708]
[1734966960756,0.00720675,94012.0,93994.0,0.02117023]
[1734966960932,0.00720675,94006.0,93992.0,0.07485164]
[1734966961308,0.00720675,94006.0,93995.0,0.00733095]
[1734966961490,0.0499,94011.0,93996.0,0.02242039]
[1734966961748,0.15674093,94050.0,94000.0,0.15665553]
[1734966961749,0.0481,94033.0,94000.0,0.15665553]
[1734966961960,0.0798,94037.0,94023.0,0.15665553]
[1734966962181,8.54e-05,94050.0,94024.0,0.31669532]
[1734966962388,8.54e-05,94050.0,94040.0,0.24136364]
[1734966962818,8.54e-05,94050.0,94041.0,0.535041]
[1734966963028,8.54e-05,94058.0,94057.0,0.212637]
[1734966963256,8.54e-05,94058.0,94057.0,0.31662332]
[1734966963676,8.54e-05,94058.0,94057.0,0.10398632]
[1734966963902,0.0002455,94058.0,94057.0,0.25398632]
[1734966964109,0.0826,94086.0,94066.0,0.15]
[1734966964312,0.08313346,94086.0,94076.0,0.212594]
[1734966964523,0.00053346,94086.0,94077.0,0.10398632]
[1734966964723,0.00053346,94086.0,94066.0,0.15]
[1734966964724,0.00053346,94086.0,94079.0,0.65782057]
[1734966964953,0.00053346,94086.0,94080.0,0.25398632]
[1734966965779,0.00053346,94086.0,94061.0,0.15]
[1734966965988,0.00153346,94086.0,94079.0,0.015]
[1734966966192,0.00153346,94086.0,94079.0,0.006]
[1734966966335,0.00153346,94086.0,94080.0,0.10398632]
[1734966966532,0.00053346,94086.0,94080.0,0.20577957]
[1734966966734,0.00053346,94086.0,94081.0,0.61913784]
[1734966966945,0.00053346,94086.0,94081.0,0.04397384]
[1734966967158,0.00053346,94086.0,94076.0,0.02136679]
[1734966967353,0.00049346,94086.0,94077.0,0.10398632]
[1734966967816,0.00049346,94086.0,94077.0,0.02998632]
[1734966968045,0.00049346,94086.0,94080.0,0.003]
[1734966968473,0.00049346,94086.0,94076.0,0.02136679]
[1734966968941,0.00049346,94086.0,94079.0,0.005]
[1734966969143,0.1257,94085.0,94077.0,0.002]
[1734966969344,0.1257,94085.0,94054.0,0.212643]
[1734966969546,0.1257,94085.0,94080.0,0.008]
[1734966969755,0.1257,94085.0,94076.0,0.003]
[1734966970796,0.1257,94085.0,94069.0,0.02081735]
[1734966971348,0.00720675,94083.0,94056.0,0.133]
[1734966971544,0.00720675,94083.0,94055.0,0.14839659]
[1734966971545,0.00720675,94072.0,94055.0,0.04441027]
[1734966971744,0.1257,94085.0,94080.0,0.003]
[1734966971969,0.1257,94085.0,94060.0,0.02163522]
[1734966972181,0.1257,94085.0,94044.0,0.461041]
[1734966972182,0.00720675,94073.0,94044.0,0.461041]
[1734966972391,0.00720675,94072.0,94044.0,0.56502732]
[1734966972628,0.00720675,94072.0,94057.0,0.02076837]
[1734966973356,0.00720675,94066.0,94045.0,0.08306792]
[1734966973518,0.00720675,94049.0,94006.0,0.55383425]
[1734966973676,0.00720675,94057.0,94007.0,0.10398632]
[1734966973917,0.00720675,94049.0,94008.0,0.212747]
[1734966974126,0.00720675,94045.0,94009.0,0.19174188]
[1734966974331,0.00720675,94031.0,94016.0,0.02135195]
[1734966974958,0.00720675,94031.0,94016.0,0.02151205]
[1734966975154,0.20398632,94044.0,94016.0,0.02151205]
[1734966975155,0.00720675,94039.0,94016.0,0.02151205]
[1734966975365,0.00720675,94036.0,94016.0,0.02151205]
[1734966975772,0.00720675,94023.0,94016.0,0.0001601]
[1734966975998,0.00720675,94017.0,94016.0,0.0021601]
[1734966976452,0.08660675,94017.0,94016.0,0.0021601]
[1734966977073,0.08660675,94017.0,93995.0,0.0001708]
[1734966977074,0.1,94015.0,93996.0,0.02108958]
[1734966977285,0.38759307,94017.0,93996.0,0.02108958]
[1734966977286,0.00720675,93997.0,93996.0,0.02108958]
[1734966977502,0.11119307,93997.0,93995.0,0.00033096]
[1734966977704,0.34119307,93996.0,93995.0,0.00033096]
[1734966977906,0.34119307,93996.0,93969.0,0.02029139]
[1734966977907,0.00720675,93979.0,93969.0,0.02029139]
[1734966978107,0.00720675,93976.0,93969.0,0.02029139]
[1734966978310,0.20575661,93996.0,93969.0,0.02029139]
[1734966978534,0.1,93974.0,93969.0,0.02029139]
[1734966978739,0.1801,93970.0,93969.0,0.02029139]
[1734966978961,0.1801,93970.0,93966.0,0.14202126]
[1734966978962,0.18408632,93970.0,93966.0,0.14202126]
[1734966979174,0.1,93967.0,93966.0,0.01392126]
[1734966979383,0.35398632,93967.0,93966.0,0.01392126]
[1734966979587,0.35398632,93967.0,93966.0,0.00512416]
[1734966979802,0.1,93964.0,93941.0,0.01392126]
[1734966980011,0.24136364,93960.0,93943.0,0.00522544]
[1734966980250,0.20398632,93959.0,93942.0,0.00070499]
[1734966980670,0.1,93958.0,93912.0,0.15]
[1734966980883,0.24136364,93940.0,93921.0,0.02173951]
[1734966981114,0.10398632,93939.0,93918.0,0.00016029]
[1734966981535,0.10398632,93939.0,93919.0,0.00528984]
[1734966982772,0.10398632,93939.0,93918.0,0.00016029]
[1734966983179,0.10398632,93939.0,93919.0,0.001]
[1734966983389,0.1,93929.0,93919.0,0.001]
[1734966983619,0.1,93920.0,93919.0,0.001]
[1734966983835,0.37898632,93920.0,93919.0,0.001]
[1734966984102,0.35398632,93920.0,93919.0,0.001]
[1734966984727,0.25,93919.0,93918.0,0.00016029]
[1734966984947,0.35398632,93919.0,93918.0,0.00016029]
[1734966985782,0.35398632,93919.0,93884.0,0.02169482]
[1734966985783,0.1,93916.0,93884.0,0.01719691]
[1734966985993,0.24136364,93910.0,93885.0,0.02642215]
[1734966986216,0.24136364,93900.0,93885.0,0.00576629]
[1734966986429,0.1,93893.0,93884.0,0.0001602]
[1734966986666,0.1,93885.0,93884.0,0.0001602]
[1734966986881,0.20398632,93885.0,93884.0,0.0001602]
[1734966987301,0.35398632,93885.0,93884.0,0.0001602]
[1734966987518,0.1,93872.0,93871.0,8.55e-05]
[1734966987735,0.35398632,93872.0,93871.0,8.55e-05]
[1734966987958,0.1,93864.0,93850.0,4e-05]
[1734966988163,0.24136364,93860.0,93850.0,4e-05]
[1734966988575,0.10398632,93863.0,93850.0,4e-05]
[1734966989416,0.07073903,93864.0,93850.0,4e-05]
[1734966989826,0.24136364,93860.0,93850.0,4e-05]
[1734966990445,0.24136364,93860.0,93850.0,0.00204]
[1734966990650,0.24136364,93860.0,93842.0,0.0110391]
[1734966991059,0.24136364,93860.0,93850.0,0.004]
[1734966991290,0.24136364,93860.0,93850.0,0.005]
[1734966991739,0.24136364,93860.0,93850.0,0.004]
[1734966991947,0.25398632,93859.0,93850.0,0.004]
[1734966992159,0.0360342,93852.0,93850.0,0.004]
[1734966992797,0.0360342,93852.0,93829.0,0.02148392]
[1734966993027,0.24136364,93840.0,93830.0,0.00566793]
[1734966993253,0.24136364,93840.0,93827.0,0.02083684]
[1734966993460,0.31736364,93850.0,93830.0,0.00053452]
[1734966993682,0.0360342,93843.0,93830.0,0.00053452]
[1734966993898,0.0360342,93831.0,93830.0,0.00053452]
[1734966994116,0.29002052,93831.0,93830.0,0.00053452]
[1734966994335,0.29002052,93831.0,93830.0,0.00953452]
[1734966994545,0.29002052,93831.0,93830.0,0.00053452]
[1734966994766,0.30080564,93831.0,93830.0,0.00053452]
[1734966994989,0.30080564,93831.0,93830.0,0.00353452]
[1734966995208,0.25398632,93831.0,93830.0,0.00353452]
[1734966995417,0.0469,93836.0,93830.0,0.00353452]
[1734966995418,0.0469,93836.0,93830.0,0.00053452]
[1734966995629,0.0360342,93831.0,93830.0,0.00053452]
[1734966995842,0.0360342,93836.0,93830.0,0.00053452]
[1734966996048,0.002,93831.0,93830.0,0.00953452]
[1734966996249,0.002,93831.0,93805.0,0.213207]
[1734966996463,0.002,93831.0,93824.0,0.213163]
[1734966996890,0.002,93831.0,93812.0,0.00016027]
[1734966997099,0.0360342,93828.0,93812.0,0.00016027]
[1734966997774,0.0360342,93828.0,93824.0,0.009]
[1734966997983,0.0360342,93825.0,93824.0,0.009]